bitfinex/quotes_SOLUSD_20250528
["timestamp","ask_amount","ask_price","bid_price","bid_amount"]
[1748413767857,5.7449446,174.07,174.0,45.19470997]
[1748413768057,16.34745059,174.04,174.0,45.19470997]
[1748413768473,16.34745059,174.04,174.01,9.24]
[1748413769069,16.34745059,174.04,174.02,0.57464659]
[1748413773290,16.34745059,174.04,174.03,9.24]
[1748413776402,22.09325615,174.04,174.03,9.24]
[1748413777681,9.19099609,174.04,174.03,9.24]
[1748413777894,23.74160833,174.06,174.03,9.24]
[1748413778189,16.34745059,174.04,174.03,9.24]
[1748413784793,23.74160833,174.06,174.03,9.24]
[1748413784974,16.34745059,174.04,174.03,9.24]
[1748413788999,151.34460144,174.08,174.03,9.81459965]
[1748413789194,16.34745059,174.04,174.03,9.81459965]
[1748413789401,16.34745059,174.04,174.03,45.05459965]
[1748413790809,145.6,174.08,174.03,45.05459965]
[1748413791106,16.34745059,174.06,174.03,45.05459965]
[1748413794606,16.34745059,174.06,174.03,71.05459965]
[1748413794981,16.34745059,174.05,174.03,71.05459965]
[1748413800286,16.34745059,174.04,174.03,70.48]
[1748413800610,16.34745059,174.04,174.03,35.24]
[1748413801117,16.34745059,174.04,174.03,70.5]
[1748413801785,16.34745059,174.04,174.03,44.5]
[1748413803397,22.09325615,174.04,174.03,9.24]
[1748413804236,16.34745059,174.04,174.03,9.24]
[1748413806646,22.09325615,174.04,174.03,9.24]
[1748413810809,55.10741891,174.04,174.01,9.18]
[1748413811114,16.34745059,174.02,173.99,91.8]
[1748413811325,16.34745059,174.0,173.99,91.8]
[1748413811919,22.09457702,174.0,173.99,91.8]
[1748413813435,52.8098437,174.0,173.97,9.18]
[1748413813629,32.69490118,173.98,173.96,9.18]
[1748413813838,16.34745059,173.97,173.96,9.18]
[1748413814416,27.5852,174.01,173.96,9.18]
[1748413814417,33.33210714,174.01,173.96,9.18]
[1748413814621,31.74690714,174.01,173.96,9.18]
[1748413814948,16.34745059,173.97,173.96,9.18]
[1748413815715,16.34745059,173.97,173.96,44.4]
[1748413817829,16.34745059,173.98,173.96,44.4]
[1748413818035,16.34745059,173.97,173.96,44.4]
[1748413820519,16.34745059,173.97,173.96,44.97484479]
[1748413821732,16.34745059,173.97,173.96,44.4]
[1748413822729,16.34745059,173.97,173.96,9.18]
[1748413826211,145.6,173.99,173.96,9.18]
[1748413826417,16.34745059,173.97,173.96,9.18]
[1748413827846,16.34745059,173.97,173.96,9.75483883]
[1748413829440,16.34745059,173.98,173.96,9.75483883]
[1748413830847,16.34745059,173.98,173.97,35.18]
[1748413831345,16.34745059,173.98,173.97,35.75481174]
[1748413832627,16.34745059,173.98,173.97,35.18]
[1748413836162,16.34745059,173.98,173.96,9.18]
[1748413836455,16.34745059,173.97,173.96,9.18]
[1748413837152,16.34745059,173.97,173.96,44.32]
[1748413839252,16.34745059,173.97,173.96,9.18]
[1748413841669,38.44301867,173.97,173.96,9.18]
[1748413846152,38.44301867,173.97,173.93,9.14]
[1748413846349,16.34745059,173.94,173.93,9.14]
[1748413851669,22.09655947,173.94,173.93,9.14]
[1748413854487,22.09655947,173.94,173.91,9.1]
[1748413854651,16.34745059,173.92,173.91,9.1]
[1748413855657,16.34745059,173.92,173.85,35.1]
[1748413855658,5.75010062,173.91,173.85,35.1]
[1748413855853,16.34745059,173.86,173.85,9.1]
[1748413858672,145.6,173.9,173.85,10.25041702]
[1748413858851,16.34745059,173.86,173.85,10.25041702]
[1748413861251,145.6,173.9,173.85,10.25041702]
[1748413861470,16.34745059,173.86,173.85,10.25041702]
[1748413864059,16.34745059,173.86,173.85,9.1]
[1748413865281,22.09920487,173.86,173.85,9.1]
[1748413870186,22.09920487,173.86,173.82,82.66]
[1748413870367,16.34745059,173.83,173.74,1.6617]
[1748413870570,145.6,173.85,173.75,9.1]
[1748413870571,16.34745059,173.79,173.75,9.1]
[1748413870882,16.34745059,173.76,173.71,1.15132553]
[1748413871062,16.34745059,173.79,173.72,9.1]
[1748413871380,5.75440211,173.78,173.72,9.1]
[1748413871567,5.75440211,173.78,173.72,44.24]
[1748413871969,5.75440211,173.78,173.72,45.39127541]
[1748413872170,16.34745059,173.73,173.72,45.39127541]
[1748413872374,16.34745059,173.74,173.72,45.39127541]
[1748413872976,16.34745059,173.79,173.72,45.39127541]
[1748413873175,16.34745059,173.75,173.74,27.15114538]
[1748413874493,16.34745059,173.75,173.74,26.0]
[1748413875993,16.34745059,173.75,173.74,27.15114538]
[1748413878086,16.34745059,173.75,173.74,26.0]
[1748413878496,16.34745059,173.75,173.73,1.15121165]
[1748413878809,16.34745059,173.74,173.72,71.41126057]
[1748413878980,16.34745059,173.73,173.72,71.41126057]
[1748413881695,16.34745059,173.79,173.72,71.41126057]
[1748413881879,16.34745059,173.74,173.72,71.41126057]
[1748413883200,16.34745059,173.74,173.72,45.41126057]
[1748413883781,16.34745059,173.73,173.72,45.41126057]
[1748413885895,16.34745059,173.74,173.72,45.41126057]
[1748413886282,145.6,173.78,173.74,26.0]
[1748413886283,16.34745059,173.75,173.74,26.0]
[1748413886997,145.6,173.78,173.72,45.98689952]
[1748413887188,16.34745059,173.75,173.74,26.0]
[1748413887901,16.34745059,173.76,173.74,26.0]
[1748413888896,16.34745059,173.76,173.75,0.57553956]
[1748413890807,16.34745059,173.76,173.74,26.0]
[1748413891102,16.34745059,173.75,173.74,26.57557205]
[1748413894192,16.34745059,173.76,173.74,26.57557205]
[1748413896288,16.34745059,173.76,173.75,9.1]
[1748413897190,16.34745059,173.76,173.75,9.67553956]
[1748413897389,145.6,173.78,173.75,9.67553956]
[1748413897605,31.75298865,173.83,173.76,35.16]
[1748413897795,16.34745059,173.78,173.76,35.16]
[1748413898124,26.0,173.83,173.76,35.16]
[1748413898311,16.34745059,173.79,173.76,35.16]
[1748413900314,16.34745059,173.79,173.77,0.57547332]
[1748413900629,16.34745059,173.81,173.77,0.57547332]
[1748413902898,147.2219,173.84,173.77,0.57547332]
[1748413903101,16.34745059,173.81,173.77,0.57547332]
[1748413905041,16.34745059,173.8,173.77,0.57547332]
[1748413906110,16.34745059,173.79,173.78,26.0]
[1748413906321,16.34745059,173.8,173.78,26.0]
[1748413907015,16.34745059,173.8,173.79,0.5754071]
[1748413907526,16.34745059,173.8,173.78,26.57542805]
[1748413907898,16.34745059,173.79,173.78,26.57542805]
[1748413908419,16.34745059,173.79,173.76,0.57550644]
[1748413908629,145.6,173.83,173.78,35.16]
[1748413909104,5.75331554,173.82,173.78,35.16]
[1748413909924,16.34745059,173.79,173.78,35.16]
[1748413910529,16.34745059,173.79,173.78,35.73544021]
[1748413911630,16.34745059,173.79,173.78,44.83544021]
[1748413912310,16.34745059,173.82,173.78,70.83544021]
[1748413912723,16.34745059,173.82,173.78,72.27404073]
[1748413913804,161.94745059,173.83,173.78,72.27404073]
[1748413914210,145.6,173.83,173.78,72.27404073]
[1748413914532,161.94745059,173.83,173.78,72.27404073]
[1748413915309,16.34745059,173.82,173.78,72.27404073]
[1748413916636,16.34745059,173.81,173.78,71.41088042]
[1748413917138,16.34745059,173.8,173.79,44.24]
[1748413918319,16.34745059,173.8,173.79,45.3908142]
[1748413919645,16.34745059,173.8,173.79,44.24]
[1748413920441,16.34745059,173.8,173.79,9.1]
[1748413921718,22.10119052,173.8,173.79,9.1]
[1748413930755,38.44864111,173.8,173.79,9.1]
[1748413938128,64.44864111,173.8,173.79,9.1]
[1748413941560,31.75373993,173.8,173.79,9.1]
[1748413941761,64.44864111,173.8,173.79,9.1]
[1748413944340,38.44864111,173.8,173.79,9.1]
[1748413944965,16.34745059,173.8,173.79,9.1]
[1748413945265,5.75307789,173.82,173.79,9.1]
[1748413945441,16.34745059,173.8,173.79,9.1]
[1748413952150,16.34745059,173.8,173.79,10.25081358]
[1748413952351,16.34745059,173.8,173.79,9.1]
[1748413954768,22.10119052,173.8,173.79,9.1]
[1748413955671,16.34745059,173.8,173.79,9.1]
[1748413955970,10.47287317,173.8,173.79,9.1]
[1748413957560,20.13240479,173.85,173.79,9.1]
[1748413957875,10.47287317,173.8,173.79,9.1]
[1748413958582,5.75208513,173.85,173.79,9.1]
[1748413958870,10.47287317,173.8,173.79,9.1]
[1748413959477,10.47287317,173.8,173.79,10.2508142]
[1748413960868,10.47287317,173.8,173.79,9.1]
[1748413963877,5.75360458,173.81,173.79,9.1]
[1748413964060,16.36622028,173.8,173.79,9.1]
[1748413968772,26.0,173.84,173.79,9.1]
[1748413968985,16.36622028,173.8,173.79,9.1]
[1748413980280,22.21443148,173.88,173.79,9.6754071]
[1748413980490,5.75142347,173.87,173.79,9.6754071]
[1748413980714,16.36622028,173.81,173.79,9.6754071]
[1748413980891,16.36622028,173.8,173.79,9.6754071]
[1748413982181,16.36622028,173.8,173.79,9.1]
[1748413983302,16.36622028,173.8,173.79,9.6754071]
[1748413983691,5.75142347,173.87,173.79,9.6754071]
[1748413983892,16.36622028,173.82,173.79,9.6754071]
[1748413986089,10.46724666,173.82,173.79,9.6754071]
[1748413989018,10.46724666,173.81,173.79,9.6754071]
[1748413994513,10.46724666,173.82,173.79,9.6754071]
[1748413995294,10.46724666,173.83,173.79,9.6754071]
[1748413995695,10.46724666,173.82,173.79,9.6754071]
[1748413995891,10.46724666,173.81,173.79,9.6754071]
[1748413998021,5.75183835,173.86,173.79,9.6754071]
[1748413998325,10.46724666,173.81,173.79,9.6754071]
[1748414000006,10.46724666,173.81,173.79,44.7954071]
[1748414001209,10.46724666,173.8,173.79,44.7954071]
[1748414003809,10.46724666,173.81,173.79,44.7954071]
[1748414005508,10.46724666,173.81,173.8,9.08]
[1748414007009,10.46724666,173.82,173.81,0.57534088]
[1748414007824,10.46724666,173.83,173.81,0.57534088]
[1748414008228,10.46724666,173.84,173.81,0.57534088]
[1748414009217,10.46724666,173.85,173.83,26.0]
[1748414010409,10.46724666,173.85,173.84,9.08]
[1748414012411,10.46724666,173.85,173.84,9.6552416]
[1748414014126,10.46724666,173.87,173.84,9.6552416]
[1748414014314,10.46724666,173.86,173.85,35.12]
[1748414018355,5.75111483,173.88,173.85,35.12]
[1748414018531,10.46724666,173.86,173.85,35.12]
[1748414019715,10.46724666,173.86,173.85,35.69520851]
[1748414019930,5.75043128,173.9,173.85,35.69520851]
[1748414020142,10.46724666,173.86,173.85,35.69520851]
[1748414024860,6.014,173.91,173.85,35.69520851]
[1748414025028,10.46724666,173.87,173.85,35.69520851]
[1748414025221,10.46724666,173.86,173.85,35.69520851]
[1748414028430,10.46724666,173.86,173.85,35.12]
[1748414029318,10.46724666,173.86,173.85,35.69520851]
[1748414029947,10.46724666,173.86,173.85,35.12]
[1748414034645,10.46724666,173.86,173.85,35.69520851]
[1748414038747,10.46724666,173.86,173.85,35.12]
[1748414040436,10.46724666,173.86,173.84,9.08]
[1748414040634,10.46724666,173.85,173.84,9.08]
[1748414042159,10.46724666,173.85,173.84,9.6552416]
[1748414042333,10.46724666,173.86,173.84,9.6552416]
[1748414042850,10.46724666,173.85,173.84,9.6552416]
[1748414048164,10.46724666,173.85,173.84,9.08]
[1748414050181,16.21933179,173.85,173.84,9.08]
[1748414050645,22.59463179,173.85,173.84,9.08]
[1748414055788,22.59463179,173.85,173.79,35.1]
[1748414055960,10.46724666,173.8,173.77,35.67546415]
[1748414056164,10.46724666,173.78,173.77,35.67546415]
[1748414056389,10.46724666,173.78,173.77,0.57546415]
[1748414056562,10.46724666,173.78,173.77,35.67546415]
[1748414059368,10.46724666,173.78,173.71,1.536]
[1748414059564,41.86898664,173.79,173.72,26.0]
[1748414059789,10.46724666,173.74,173.72,26.0]
[1748414060094,10.46724666,173.74,173.73,35.1]
[1748414060266,10.46724666,173.75,173.73,35.1]
[1748414060894,5.75417779,173.79,173.73,35.1]
[1748414061200,10.46724666,173.75,173.73,35.67559389]
[1748414061793,10.46724666,173.74,173.73,35.1]
[1748414062291,10.46724666,173.74,173.72,26.0]
[1748414062496,5.75445237,173.78,173.73,35.1]
[1748414062676,10.46724666,173.74,173.73,35.1]
[1748414062876,10.46724666,173.74,173.72,26.0]
[1748414063075,10.46724666,173.74,173.72,61.1]
[1748414063599,10.46724666,173.73,173.72,61.67563895]
[1748414064096,10.46724666,173.73,173.72,26.57563895]
[1748414064398,10.46724666,173.73,173.72,61.1]
[1748414065391,10.46724666,173.73,173.72,70.18]
[1748414066693,10.46724666,173.73,173.72,35.08]
[1748414066870,10.46724666,173.73,173.72,70.18]
[1748414067391,10.46724666,173.73,173.72,70.75563895]
[1748414073090,5.75451102,173.78,173.72,70.75563895]
[1748414073292,10.46724666,173.74,173.72,70.75563895]
[1748414075204,10.46724666,173.73,173.72,70.75563895]
[1748414075983,10.46724666,173.73,173.69,82.72]
[1748414076317,5.75506445,173.76,173.72,9.08]
[1748414077509,10.46724666,173.73,173.72,9.08]
[1748414088018,5.75542266,173.75,173.72,9.08]
[1748414088326,10.46724666,173.73,173.72,9.08]
[1748414098239,16.22330491,173.73,173.72,9.08]
[1748414098613,10.46724666,173.73,173.72,9.08]
[1748414099427,16.22330491,173.73,173.72,9.08]
[1748414100453,5.75584137,173.74,173.72,9.08]
[1748414100649,10.46724666,173.73,173.72,9.08]
[1748414105026,16.22330491,173.73,173.72,9.08]
[1748414105931,10.46724666,173.73,173.72,9.08]
[1748414106131,16.22330491,173.73,173.72,9.08]
[1748414108461,10.46724666,173.73,173.72,9.08]
[1748414108832,16.22330491,173.73,173.72,9.08]
[1748414113742,10.46724666,173.73,173.72,9.08]
[1748414116334,1.6627,173.77,173.72,9.08]
[1748414116536,10.46724666,173.73,173.72,44.75563871]
[1748414119571,47.62305764,173.79,173.72,44.75563871]
[1748414119572,41.86898664,173.79,173.72,44.75563871]
[1748414119778,10.46724666,173.75,173.72,44.75563871]
[1748414121578,10.46724666,173.73,173.72,44.75563871]
[1748414122481,10.46724666,173.74,173.72,44.75563871]
[1748414126470,5.75385502,173.8,173.72,44.75563871]
[1748414126676,10.46724666,173.74,173.72,44.75563871]
[1748414134287,10.46724666,173.73,173.72,44.75563871]
[1748414136962,10.46724666,173.74,173.72,44.75563871]
[1748414138283,10.46724666,173.73,173.72,44.75563871]
[1748414139879,5.75444667,173.78,173.72,44.75563871]
[1748414140198,7.3314318,173.81,173.72,46.1947361]
[1748414140492,10.46724666,173.76,173.72,46.1947361]
[1748414148000,10.46724666,173.75,173.72,46.1947361]
[1748414148775,10.46724666,173.75,173.72,44.75563871]
[1748414149004,10.46724666,173.75,173.73,35.08]
[1748414149806,10.46724666,173.74,173.73,35.65559883]
[1748414150200,10.46724666,173.74,173.72,9.65562653]
[1748414150404,10.46724666,173.73,173.72,9.08]
[1748414150710,10.46724666,173.73,173.72,44.16]
[1748414151581,10.46724666,173.73,173.71,82.74]
[1748414151780,10.46724666,173.73,173.64,1.6541]
[1748414151781,52.3362333,173.72,173.69,9.06]
[1748414151978,52.3362333,173.7,173.69,9.06]
[1748414152176,10.46724666,173.7,173.69,9.06]
[1748414152491,20.93449332,173.7,173.69,9.06]
[1748414152898,52.3362333,173.7,173.69,9.06]
[1748414164290,10.46724666,173.7,173.69,9.06]
[1748414166798,20.93449332,173.7,173.69,9.06]
[1748414167319,76.74293454,173.7,173.6,82.74]
[1748414167493,72.33788788,173.7,173.65,9.06]
[1748414167846,1.5158,173.71,173.65,9.06]
[1748414168025,10.46724666,173.66,173.65,9.06]
[1748414170206,10.46724666,173.66,173.65,9.635871]
[1748414172840,50.71184886,173.74,173.65,9.635871]
[1748414173020,10.46724666,173.67,173.66,35.08]
[1748414173209,10.46724666,173.67,173.66,42.12248641]
[1748414173718,10.46724666,173.67,173.66,35.08]
[1748414174421,10.46724666,173.67,173.66,35.65583784]
[1748414174591,10.46724666,173.67,173.66,44.71583784]
[1748414179427,5.75678541,173.71,173.66,44.71583784]
[1748414179631,50.71184886,173.74,173.66,44.71583784]
[1748414179632,10.46724666,173.67,173.66,44.71583784]
[1748414180232,11.81804939,173.74,173.66,44.71583784]
[1748414180413,10.46724666,173.69,173.66,44.71583784]
[1748414181730,10.46724666,173.7,173.66,46.15543245]
[1748414182042,10.46724666,173.71,173.66,46.15543245]
[1748414182867,10.46724666,173.73,173.67,26.0]
[1748414183018,10.46724666,173.74,173.69,26.0]
[1748414183625,10.46724666,173.74,173.7,0.57570523]
[1748414183827,10.46724666,173.74,173.71,35.06]
[1748414184152,10.46724666,173.73,173.72,9.06]
[1748414187914,5.75473326,173.77,173.72,9.06]
[1748414188145,6.3716,173.78,173.72,9.63563696]
[1748414188360,10.46724666,173.74,173.72,9.63563696]
[1748414189419,10.46724666,173.73,173.72,9.63563696]
[1748414190635,10.46724666,173.73,173.72,9.06]
[1748414190849,10.46724666,173.73,173.72,44.12]
[1748414191942,5.75549239,173.75,173.72,44.12]
[1748414192124,10.46724666,173.73,173.72,44.12]
[1748414192528,10.46724666,173.73,173.72,9.06]
[1748414194846,16.22330491,173.73,173.72,9.06]
[1748414197895,20.07689636,173.73,173.72,9.06]
[1748414198140,32.19275264,173.73,173.69,9.04]
[1748414198341,52.3362333,173.7,173.69,9.04]
[1748414199031,58.09328568,173.7,173.69,9.04]
[1748414200038,38.53461036,173.7,173.69,9.04]
[1748414201336,42.38022328,173.7,173.69,9.04]
[1748414201638,42.38022328,173.7,173.65,9.04]
[1748414201847,16.38877899,173.66,173.65,9.04]
[1748414204547,22.14715743,173.66,173.65,9.04]
[1748414205135,16.38877899,173.66,173.65,9.04]
[1748414206163,22.14715743,173.66,173.65,9.04]
[1748414208160,16.38877899,173.66,173.65,9.04]
[1748414214750,22.14715743,173.66,173.65,9.04]
[1748414215468,16.38877899,173.66,173.65,9.04]
[1748414219008,22.14715743,173.66,173.65,9.04]
[1748414223867,16.25048594,173.66,173.65,9.04]
[1748414224068,30.64643204,173.66,173.61,9.04]
[1748414224373,10.4921075,173.62,173.61,9.04]
[1748414226079,16.397486,173.62,173.61,9.04]
[1748414233784,1.6116,173.68,173.61,9.04]
[1748414233988,16.397486,173.65,173.61,9.04]
[1748414234185,5.75738384,173.69,173.61,9.04]
[1748414234503,16.397486,173.67,173.62,1.5258]
[1748414234685,16.397486,173.66,173.63,35.06]
[1748414235101,5.75715101,173.7,173.63,35.06]
[1748414235448,16.397486,173.67,173.63,35.06]
[1748414235783,33.38791288,173.72,173.63,35.63593733]
[1748414236087,16.397486,173.68,173.63,35.63593733]
[1748414236488,16.397486,173.68,173.63,37.07578067]
[1748414236714,5.75557209,173.75,173.63,37.07578067]
[1748414237003,16.397486,173.72,173.66,26.0]
[1748414237208,16.397486,173.72,173.67,9.04]
[1748414237500,16.397486,173.72,173.68,35.06]
[1748414237712,5.75557209,173.75,173.68,35.06]
[1748414237879,6.055,173.8,173.69,0.57573838]
[1748414238081,16.397486,173.75,173.69,0.57573838]
[1748414238283,16.397486,173.74,173.69,0.57573838]
[1748414238515,18.64964886,173.78,173.68,35.63576361]
[1748414238685,16.397486,173.7,173.68,35.63576361]
[1748414239411,16.397486,173.72,173.68,35.63576361]
[1748414239787,18.64964886,173.78,173.68,35.63576361]
[1748414239988,16.397486,173.7,173.68,35.63576361]
[1748414240624,16.397486,173.7,173.68,35.06]
[1748414240918,16.397486,173.69,173.68,35.06]
[1748414241489,16.397486,173.69,173.68,35.63577153]
[1748414243218,16.397486,173.7,173.68,35.06]
[1748414243419,16.397486,173.69,173.68,35.06]
[1748414243621,16.397486,173.69,173.68,35.04]
[1748414243826,16.397486,173.69,173.67,44.08]
[1748414243993,16.397486,173.68,173.67,9.04]
[1748414246503,22.15520133,173.68,173.67,9.04]
[1748414252505,5.75771533,173.68,173.67,9.04]
[1748414252700,22.15520133,173.68,173.67,9.04]
[1748414263736,26.00334679,173.68,173.67,9.04]
[1748414264136,22.15520133,173.68,173.67,9.04]
[1748414264446,26.00308372,173.68,173.67,9.04]
[1748414265215,26.00311453,173.68,173.67,9.04]
[1748414265721,26.00311453,173.68,173.63,9.04]
[1748414266040,16.397486,173.64,173.63,9.04]
[1748414267935,22.15652769,173.64,173.63,9.04]
[1748414268629,5.75904169,173.64,173.63,9.04]
[1748414268823,5.75869411,173.66,173.63,9.04]
[1748414269022,16.397486,173.64,173.63,9.04]
[1748414272443,22.15652769,173.64,173.63,9.04]
[1748414272974,16.397486,173.64,173.63,9.04]
[1748414277450,16.397486,173.64,173.63,9.04]
[1748414280142,22.15652769,173.64,173.63,9.04]
[1748414283329,16.397486,173.64,173.63,9.04]
[1748414284853,22.15652769,173.64,173.63,9.04]
[1748414285231,35.04713486,173.7,173.63,9.04]
[1748414285420,9.60979703,173.69,173.63,9.04]
[1748414285619,5.75738384,173.69,173.63,9.04]
[1748414285854,16.397486,173.66,173.63,9.61593456]
[1748414286050,16.397486,173.67,173.63,9.61593456]
[1748414288255,16.397486,173.66,173.63,9.61593456]
[1748414290452,162.797486,173.67,173.63,9.61593456]
[1748414291331,16.397486,173.66,173.63,9.61593456]
[1748414293758,162.797486,173.67,173.63,9.61593456]
[1748414294266,146.4,173.67,173.63,17.6177779]
[1748414295450,146.4,173.67,173.65,0.575871]
[1748414295966,146.4,173.67,173.64,35.61589666]
[1748414296163,16.397486,173.67,173.64,35.04]
[1748414296462,16.397486,173.66,173.64,35.04]
[1748414297134,16.397486,173.66,173.63,9.04]
[1748414297342,16.397486,173.66,173.65,35.04]
[1748414298840,16.397486,173.67,173.65,35.04]
[1748414301164,5.75749026,173.69,173.65,35.04]
[1748414301165,16.397486,173.66,173.65,35.04]
[1748414302755,16.397486,173.67,173.65,35.04]
[1748414303449,16.397486,173.66,173.65,35.04]
[1748414305449,16.397486,173.66,173.64,35.04]
[1748414305664,16.397486,173.65,173.63,9.04]
[1748414305853,5.75738384,173.69,173.63,44.08]
[1748414305854,16.397486,173.64,173.63,44.08]
[1748414306464,16.397486,173.64,173.63,9.04]
[1748414306666,16.397486,173.64,173.63,44.08]
[1748414309950,16.397486,173.64,173.63,9.04]
[1748414310152,16.397486,173.64,173.63,44.08]
[1748414311483,16.397486,173.64,173.63,9.04]
[1748414312778,20.15227374,173.68,173.63,9.04]
[1748414312968,16.397486,173.64,173.63,9.04]
[1748414313487,16.397486,173.64,173.63,44.08]
[1748414313782,16.397486,173.64,173.63,9.04]
[1748414314784,22.15652769,173.64,173.63,9.04]
[1748414315481,26.01067301,173.64,173.63,9.04]
[1748414315670,22.15652769,173.64,173.63,9.04]
[1748414315884,38.55401369,173.64,173.63,9.04]
[1748414316179,42.40837228,173.64,173.63,9.04]
[1748414316386,26.01085859,173.64,173.63,9.04]
[1748414316767,22.15652769,173.64,173.63,9.04]
[1748414319296,38.55401369,173.64,173.63,9.04]
[1748414319472,42.40602906,173.64,173.63,9.04]
[1748414319792,42.40623387,173.64,173.63,9.04]
[1748414320171,26.00874787,173.64,173.63,9.04]
[1748414320376,42.40623387,173.64,173.63,9.04]
[1748414321190,26.00797125,173.64,173.63,9.04]
[1748414321366,22.15652769,173.64,173.63,9.04]
[1748414325891,26.00500969,173.64,173.63,9.04]
[1748414326295,26.0,173.61,173.49,4.66839338]
[1748414326501,16.397486,173.5,173.49,44.45003587]
[1748414326700,16.397486,173.5,173.49,18.11003587]
[1748414326884,26.0,173.58,173.49,18.11003587]
[1748414327227,16.397486,173.5,173.49,13.55200531]
[1748414327712,20.16477501,173.57,173.49,15.19510631]
[1748414327713,5.76136429,173.57,173.49,15.19510631]
[1748414327878,16.397486,173.54,173.49,15.19510631]
[1748414328700,16.397486,173.56,173.49,21.05774136]
[1748414328895,26.0,173.61,173.49,22.4987466]
[1748414329195,16.397486,173.61,173.52,0.57630244]
[1748414329409,1.6259,173.63,173.52,0.57630244]
[1748414329410,16.397486,173.57,173.53,35.86]
[1748414329804,16.397486,173.59,173.53,35.86]
[1748414329978,26.0,173.64,173.54,6.3158]
[1748414330176,18.64964886,173.66,173.56,1.5667]
[1748414330177,16.397486,173.6,173.56,1.5667]
[1748414330376,148.0259,173.67,173.56,1.5667]
[1748414330377,153.78400827,173.67,173.56,1.5667]
[1748414330576,16.397486,173.61,173.56,1.5667]
[1748414330780,148.0259,173.67,173.56,1.5667]
[1748414331009,16.397486,173.61,173.57,0.57613642]
[1748414331183,148.0259,173.67,173.58,35.86]
[1748414331504,16.397486,173.62,173.58,35.86]
[1748414331812,16.397486,173.64,173.58,35.86]
[1748414331986,5.75712498,173.7,173.58,35.86]
[1748414332179,3.83755001,173.69,173.58,35.86]
[1748414332378,16.397486,173.64,173.58,35.86]
[1748414332592,5.75712498,173.7,173.59,2.01624517]
[1748414332803,16.397486,173.64,173.59,2.01624517]
[1748414334096,16.397486,173.63,173.59,2.01624517]
[1748414334285,16.397486,173.62,173.59,0.57607005]
[1748414335105,16.397486,173.63,173.59,0.57607005]
[1748414335313,16.397486,173.64,173.59,0.57607005]
[1748414335491,16.397486,173.64,173.59,2.01624517]
[1748414335685,16.397486,173.66,173.59,2.01624517]
[1748414336706,16.397486,173.65,173.59,2.01624517]
[1748414338320,16.397486,173.65,173.61,26.0]
[1748414338494,16.397486,173.65,173.62,9.46]
[1748414338895,16.397486,173.66,173.62,9.46]
[1748414339911,16.397486,173.67,173.62,9.46]
[1748414340111,31.75612034,173.73,173.62,9.46]
[1748414340317,16.397486,173.68,173.63,3.60018067]
[1748414340539,16.397486,173.68,173.64,35.82]
[1748414342132,16.397486,173.69,173.64,35.82]
[1748414342304,16.397486,173.69,173.65,0.575871]
[1748414343908,1.51,173.75,173.67,26.0]
[1748414344114,16.397486,173.72,173.68,9.46]
[1748414344325,5.75553935,173.75,173.69,0.57573838]
[1748414344526,16.397486,173.73,173.7,35.8]
[1748414345504,16.397486,173.71,173.7,35.8]
[1748414346028,16.397486,173.72,173.7,35.8]
[1748414347100,16.397486,173.71,173.7,35.8]
[1748414347640,16.397486,173.71,173.68,9.46]
[1748414348066,16.397486,173.69,173.68,9.46]
[1748414352640,22.15486984,173.69,173.68,9.46]
[1748414353613,16.397486,173.69,173.68,9.46]
[1748414357238,22.15486984,173.69,173.68,9.46]
[1748414358245,16.397486,173.69,173.68,9.46]
[1748414358541,22.15486984,173.69,173.68,9.46]
[1748414365440,16.397486,173.69,173.68,9.46]
[1748414366450,31.75473326,173.77,173.68,10.03575458]
[1748414366625,3.85359617,173.76,173.69,35.72]
[1748414366840,16.397486,173.7,173.69,36.29573838]
[1748414368167,16.397486,173.7,173.69,35.72]
[1748414369355,16.397486,173.7,173.68,9.46]